bitfinex/quotes_ETHUSD_20220113
["timestamp","ask_amount","ask_price","bid_price","bid_amount"]
[1642034930496,0.74305,3364.9,3364.7,0.00341054]
[1642034931297,0.74307,3364.8,3364.7,0.00341054]
[1642034931503,0.74307,3364.8,3364.7,0.50341054]
[1642034934343,3.29241868,3364.8,3364.7,0.50341054]
[1642034936243,6.19241868,3364.8,3364.7,0.50341054]
[1642034937099,7.04247166,3364.8,3364.7,0.50341054]
[1642034939201,4.14247166,3364.8,3364.7,0.50341054]
[1642034940001,3.29241868,3364.8,3364.7,0.50341054]
[1642034940241,5.49241868,3364.8,3364.7,0.50341054]
[1642034940646,3.5,3364.7,3364.6,0.00604317]
[1642034941042,0.74327,3364.3,3363.8,0.1188]
[1642034941242,0.74324,3364.2,3363.8,0.1188]
[1642034941449,0.74324,3364.2,3363.9,0.00454739]
[1642034942048,2.54934868,3364.1,3363.9,0.00454739]
[1642034942248,1.37829143,3364.0,3363.9,0.00454739]
[1642034943347,4.72829143,3364.0,3363.9,0.00454739]
[1642034943750,3.6,3363.9,3363.0,0.1189]
[1642034943997,3.6,3363.9,3362.8,1.33669997]
[1642034943998,1.4868031,3363.5,3362.8,1.1985]
[1642034944197,1.4868031,3363.5,3362.9,0.1189]
[1642034944398,1.4868031,3363.5,3362.9,0.00568423]
[1642034944597,1.4868031,3363.5,3363.0,0.1189]
[1642034944798,1.4868031,3363.5,3363.4,1.29383076]
[1642034944998,2.2302131,3363.5,3363.4,1.29383076]
[1642034945204,5.0368131,3363.5,3363.4,0.12174212]
[1642034945601,5.54698645,3363.5,3363.4,0.12174212]
[1642034946200,5.54698645,3363.5,3363.3,0.5]
[1642034946407,8.30460963,3363.4,3363.3,0.5]
[1642034946604,0.74358,3362.7,3362.3,0.1189]
[1642034946803,0.74358,3362.6,3362.3,0.1189]
[1642034947005,0.74358,3362.6,3362.4,0.00568423]
[1642034947202,0.74358,3362.6,3362.5,0.1189]
[1642034947655,0.74358,3362.6,3362.5,0.00511581]
[1642034947840,0.74358,3362.6,3362.5,0.12401581]
[1642034948039,0.74358,3362.6,3362.5,1.31858716]
[1642034948240,0.74358,3362.6,3362.5,1.32370297]
[1642034948241,1.25375335,3362.6,3362.5,1.32370297]
[1642034948443,2.48149151,3362.6,3362.5,1.32370297]
[1642034949441,2.48149151,3362.6,3362.5,1.20480297]
[1642034949645,1.5002339,3362.9,3362.5,1.20480297]
[1642034949846,0.23792075,3363.1,3362.5,1.20480297]
[1642034950043,12.29296821,3363.7,3362.6,0.03970785]
[1642034950245,0.1189,3363.6,3362.6,0.03970785]
[1642034950444,2.01439116,3362.9,3362.7,0.00397896]
[1642034951047,2.01439116,3362.9,3362.6,0.00454738]
[1642034951245,0.74361,3362.8,3362.6,0.00454738]
[1642034951902,1.48721,3362.8,3362.6,0.00454738]
[1642034952301,2.2308425,3362.8,3362.6,0.00454738]
[1642034953102,1.48721,3362.8,3362.6,0.00454738]
[1642034954806,2.2308784,3362.8,3362.6,0.00454738]
[1642034955007,2.3497784,3362.8,3362.6,0.00454738]
[1642034955242,0.74367,3362.6,3362.3,0.00625265]
[1642034955442,0.74369,3362.5,3362.3,0.00625265]
[1642034957648,1.60279,3362.5,3362.3,0.00625265]
[1642034959596,1.72169,3362.5,3362.3,0.00625265]
[1642034961704,2.72169,3362.5,3362.3,0.00625265]
[1642034961904,1.72169,3362.5,3362.3,0.00625265]
[1642034962305,0.86259,3362.5,3362.3,0.00625265]
[1642034963251,0.74369,3362.5,3362.3,0.03502841]
[1642034963650,0.86259,3362.6,3362.3,0.03502841]
[1642034963852,0.74369,3362.6,3362.3,0.00625265]
[1642034964251,0.74369,3362.6,3362.4,0.02748083]
[1642034964453,0.86259,3362.6,3362.3,0.00625265]
[1642034964658,0.86259,3362.6,3362.5,0.00511581]
[1642034964854,0.1189,3362.6,3362.3,0.00625265]
[1642034965253,1.60618,3362.6,3362.3,0.00625265]
[1642034965858,3.09359,3362.6,3362.3,0.00625265]
[1642034966802,4.22724759,3362.6,3362.3,0.00625265]
[1642034967002,2.23103,3362.7,3362.3,0.00625265]
[1642034967003,2.66535074,3362.7,3362.3,0.00625265]
[1642034967201,0.1189,3362.6,3362.3,0.00625265]
[1642034967402,1.23473236,3363.1,3362.4,0.06843454]
[1642034967702,1.66073236,3363.1,3362.8,1.1347271]
[1642034968104,4.19166236,3363.1,3362.9,0.00284211]
[1642034968304,4.0189,3363.0,3362.9,0.00284211]
[1642034968504,0.74375,3362.6,3362.0,0.00795792]
[1642034968704,0.74373,3362.4,3362.0,0.00795792]
[1642034969207,0.1189,3362.3,3362.1,1.29203674]
[1642034969604,0.1189,3362.3,3362.2,0.00682108]
[1642034971144,0.1189,3362.3,3362.2,0.00762108]
[1642034971950,2.65008,3362.4,3362.2,0.00762108]
[1642034972350,2.65008,3362.4,3362.3,0.00625265]
[1642034972552,0.74372,3362.4,3362.3,0.00625265]
[1642034974318,1.04372,3362.4,3362.3,0.00625265]
[1642034975115,1.30852,3362.4,3362.3,0.00625265]
[1642034975619,1.42742,3362.4,3362.3,0.00625265]
[1642034976625,1.42742,3362.4,3360.0,0.74391]
[1642034976626,7.35,3362.2,3360.0,0.74391]
[1642034976831,0.74398,3361.5,3360.0,3.9294]
[1642034977023,1.74428,3361.5,3360.0,3.9294]
[1642034977223,1.74428,3361.5,3360.8,5e-05]
[1642034977649,3.11098046,3361.5,3361.4,0.5]
[1642034977843,8.06805046,3361.5,3361.4,0.5]
[1642034978043,8.36805046,3361.5,3361.4,0.50511581]
[1642034978644,8.36805046,3361.5,3361.4,0.00511581]
[1642034978645,1.86328,3361.5,3361.4,0.00511581]
[1642034978845,0.74402,3361.7,3361.4,1.77131705]
[1642034979047,3.8263601,3362.2,3361.4,1.77131705]
[1642034979244,3.8263601,3362.2,3361.5,0.12344739]
[1642034979643,1.19516483,3362.3,3361.6,0.00397897]
[1642034979845,1.48432251,3362.3,3361.7,0.1189]
[1642034980143,1.48432251,3362.3,3361.8,0.00284212]
[1642034980344,1.48755,3362.0,3361.8,0.00284212]
[1642034980744,0.74369,3362.2,3361.6,0.00397897]
[1642034980943,0.74369,3362.2,3361.7,0.1189]
[1642034981244,1.04369,3362.2,3361.8,0.00284212]
[1642034981707,0.74369,3362.5,3361.8,0.00284212]
[1642034981708,1.48731,3362.4,3361.8,0.00284212]
[1642034981910,1.36111929,3362.7,3361.8,0.03093418]
[1642034982110,0.00113684,3362.5,3361.8,2.05272983]
[1642034982309,0.00113684,3362.5,3361.9,0.0022737]
[1642034982511,0.74365,3362.7,3362.2,1.13542464]
[1642034982808,0.00170527,3362.6,3362.2,1.13542464]
[1642034983408,0.7436,3362.4,3362.2,1.13542464]
[1642034983609,0.7436,3362.4,3361.9,0.0022737]
[1642034983610,1.0436,3362.4,3362.0,0.1189]
[1642034984008,1.0436,3362.4,3362.1,0.00113685]
[1642034984712,0.3,3362.4,3361.8,0.00284212]
[1642034984909,0.74374,3362.1,3361.8,0.00284212]
[1642034985157,0.74374,3362.0,3361.8,0.00284212]
[1642034985548,0.3,3361.9,3361.8,0.00284212]
[1642034986150,1.04377,3361.9,3361.5,0.00454739]
[1642034986352,1.04377,3361.9,3361.8,0.0008]
[1642034986751,1.04377,3361.9,3361.8,0.00364212]
[1642034987354,0.74377,3361.9,3361.8,0.00364212]
[1642034987654,0.74374,3362.0,3361.8,0.00364212]
[1642034987851,0.3,3361.9,3361.8,0.00364212]
[1642034988053,2.39409969,3361.9,3361.8,0.0008]
[1642034988257,3.55,3361.9,3361.8,0.0008]
[1642034989088,5.35526125,3361.9,3361.8,0.0008]
[1642034989689,0.81042396,3361.9,3361.8,0.0008]
[1642034990890,6.74928014,3361.9,3361.8,0.0008]
[1642034991091,7.93977349,3361.9,3361.8,0.0008]
[1642034991395,4.82243168,3361.9,3361.8,0.0008]
[1642034991594,3.52932396,3361.9,3361.8,0.0008]
[1642034992192,3.41042396,3361.9,3361.8,0.0008]
[1642034992401,3.11042396,3361.9,3361.8,0.0008]
[1642034992651,3.41042396,3361.9,3361.8,0.0008]
[1642034992844,3.11042396,3361.9,3361.8,0.0008]
[1642034994045,3.41042396,3361.9,3361.8,0.0008]
[1642034995448,5.96181846,3361.9,3361.8,0.0008]
[1642034998609,12.56181846,3361.9,3361.8,0.0008]
[1642034998808,10.68071846,3361.9,3361.8,0.0008]
[1642034999207,12.16861846,3361.9,3361.8,0.0008]
[1642034999609,8.4439674,3361.8,3360.9,0.1189]
[1642034999809,0.74396,3361.2,3360.9,0.1189]
[1642035000159,0.419,3361.1,3361.0,0.00738951]
[1642035000546,3.92942396,3361.1,3361.0,0.00738951]
[1642035000745,0.92942396,3361.1,3361.0,0.00738951]
[1642035001147,0.92942396,3361.1,3360.9,0.02628951]
[1642035001550,3.48081846,3361.1,3360.9,0.02628951]
[1642035001950,0.51042396,3361.0,3360.9,0.02628951]
[1642035002549,5.46181846,3361.0,3360.9,0.02628951]
[1642035003049,6.35261846,3361.0,3360.9,0.02628951]
[1642035003749,3.95261846,3361.0,3360.9,0.02628951]
[1642035004193,6.05612486,3361.0,3360.9,0.02628951]
[1642035004594,12.49761846,3361.0,3360.8,5e-05]
[1642035004793,8.819,3360.9,3360.8,5e-05]
[1642035004995,9.119,3360.9,3360.8,5e-05]
[1642035005194,9.119,3360.9,3359.8,2.0]
[1642035005195,6.8,3360.8,3359.8,2.0]
[1642035005397,0.7442403,3360.6,3359.8,2.0]
[1642035005595,0.7442403,3360.6,3359.9,0.00511581]
[1642035005596,0.119,3360.5,3359.9,0.00511581]
[1642035005795,4.54425,3360.0,3359.9,0.00511581]
[1642035005998,4.54425,3360.0,3359.7,2.377028]
[1642035005999,5.92385,3360.0,3359.8,0.00568423]
[1642035006395,7.17862536,3360.0,3359.8,0.00568423]
[1642035007000,7.94500531,3359.9,3359.8,0.00568423]
[1642035007398,5.75,3359.9,3359.8,0.00568423]
[1642035007653,6.26042396,3359.9,3359.8,0.00568423]
[1642035008147,6.37942396,3359.9,3359.8,0.00568423]
[1642035008349,11.38347952,3359.9,3359.8,0.00568423]
[1642035008548,9.23081846,3359.9,3359.8,0.00568423]
[1642035009148,8.7203945,3359.9,3359.8,0.00568423]
[1642035009349,8.93184798,3359.9,3359.8,0.00568423]
[1642035009549,8.93184798,3359.9,3359.7,2.377028]
[1642035009550,6.6,3359.8,3359.7,2.377028]
[1642035009749,7.326,3359.8,3359.7,2.377028]
[1642035009949,9.48457043,3359.8,3359.7,2.377028]
[1642035010350,9.48457043,3359.8,3359.2,5.0]
[1642035010351,5.8,3359.7,3359.2,5.0]
[1642035010550,3.44449,3359.3,3359.2,6.31363418]
[1642035010948,3.74449,3359.3,3359.2,6.31363418]
[1642035011149,4.04449,3359.3,3359.2,6.31363418]
[1642035011996,4.04449,3359.3,3359.2,5.0]
[1642035012998,1.48899,3359.6,3359.2,5.0]
[1642035012999,2.18451943,3359.6,3359.2,5.0]
[1642035013203,3.06313038,3359.9,3359.3,0.0462]
[1642035013397,12.77476,3360.2,3359.9,7.31375597]
[1642035013398,4.45,3360.0,3359.9,7.31375597]
[1642035013598,1.488747,3360.0,3359.9,7.31375597]
[1642035013799,9.62826,3360.2,3359.9,8.4805887]
[1642035013800,0.74609527,3360.1,3359.9,8.4805887]
[1642035014197,0.00113685,3360.0,3359.9,9.99682375]
[1642035015454,0.30113685,3360.0,3359.9,9.99682375]
[1642035016255,0.60113685,3360.0,3359.9,8.82999102]
[1642035016454,0.30113685,3360.0,3359.9,8.82999102]
[1642035017056,0.00113685,3360.0,3359.9,8.82999102]
[1642035017256,0.00113685,3360.0,3359.9,8.94899102]
[1642035017560,0.00113685,3360.0,3359.9,8.82999102]
[1642035017757,0.00113685,3360.0,3359.9,8.67999102]
[1642035018056,0.00113685,3360.0,3359.9,10.57054182]
[1642035018257,0.00113685,3360.0,3359.9,9.17999102]
[1642035019292,0.00113685,3360.0,3359.9,10.14368621]
[1642035019693,0.00113685,3360.0,3359.9,6.05903827]
[1642035019893,0.30113685,3360.0,3359.9,4.59534308]
[1642035020094,0.42013685,3360.0,3359.9,4.59534308]
[1642035020293,2.87013685,3360.0,3359.9,4.59534308]
[1642035020694,3.87013685,3360.0,3359.9,4.59534308]
[1642035020894,1.42013685,3360.0,3359.9,4.59534308]
[1642035021098,0.42013685,3360.0,3359.9,4.60224969]
[1642035021299,0.12013685,3360.0,3359.9,4.60224969]
[1642035021700,0.00113685,3360.0,3359.9,4.60224969]
[1642035024251,2.80113685,3360.0,3359.9,4.60224969]
[1642035024851,4.22013685,3360.0,3359.9,4.59534969]
[1642035025151,4.48693685,3360.0,3359.9,4.59534969]
[1642035025752,1.68693685,3360.0,3359.9,4.59534969]
[1642035026151,0.42013685,3360.0,3359.9,4.60224969]
[1642035026401,8.3952308,3360.0,3359.9,4.60224969]
[1642035026602,9.3952308,3360.0,3359.9,4.60224969]
[1642035027003,7.22013685,3360.0,3359.9,4.60224969]
[1642035027402,8.07146267,3360.0,3359.9,4.60224969]
[1642035028907,8.58224976,3360.0,3359.9,4.60224969]
[1642035029307,11.13533957,3360.0,3359.9,4.60224969]
[1642035029707,5.03533957,3360.0,3359.9,4.60224969]
[1642035029908,3.91633957,3360.0,3359.9,4.60224969]
[1642035030354,3.06501375,3360.0,3359.9,4.60224969]
[1642035030957,3.06774158,3360.0,3359.9,4.59534308]
[1642035031962,3.81207158,3360.0,3359.9,4.59534308]
[1642035033663,5.95865248,3360.0,3359.9,4.59534308]
[1642035034108,3.81207158,3360.0,3359.9,4.59534308]
[1642035034303,7.26207158,3360.0,3359.9,4.59534308]
[1642035034704,3.81207158,3360.0,3359.9,4.59534308]
[1642035034905,4.81207158,3360.0,3359.9,4.59534308]
[1642035035304,4.81207158,3360.0,3359.9,0.51047976]
[1642035035906,3.81207158,3360.0,3359.9,0.51047976]
[1642035036209,3.06774158,3360.0,3359.9,0.51047976]
[1642035037208,5.81774158,3360.0,3359.9,0.51047976]
[1642035039164,7.97224949,3360.0,3359.4,1.21149234]
[1642035039360,1.48882,3359.8,3359.3,0.00284212]
[1642035039560,0.3,3359.6,3359.5,0.00170527]
[1642035040262,7.71078709,3359.6,3359.5,0.00170527]
[1642035040462,8.94652707,3359.6,3359.5,0.00170527]
[1642035040662,9.94652707,3359.6,3359.5,0.00170527]
[1642035040865,9.94652707,3359.6,3359.2,5.0]
[1642035040866,0.74457,3359.5,3359.2,5.0]
[1642035041063,0.74457,3359.5,3359.3,0.00113685]
[1642035041064,7.05629867,3359.4,3359.3,0.00113685]
[1642035041263,7.17529867,3359.4,3358.9,0.05382775]
[1642035041509,10.3965,3359.3,3358.9,0.05382775]
[1642035041710,2.21629213,3359.2,3359.0,0.00170527]
[1642035041907,7.719,3359.1,3359.0,0.00170527]
[1642035042108,8.719,3359.1,3359.0,0.00170527]
[1642035042308,9.019,3359.1,3359.0,0.00170527]
[1642035042711,9.76368,3359.1,3359.0,0.00170527]
[1642035043110,10.07068,3359.1,3359.0,0.00170527]
[1642035043311,10.07068,3359.1,3358.1,0.119]
[1642035043518,0.01218161,3358.2,3357.0,50.0]
[1642035043713,9.23926,3358.9,3357.0,50.0]
[1642035043714,0.1191,3358.1,3357.0,50.0]
[1642035043913,0.426,3358.3,3357.4,0.45]
[1642035044111,0.326,3358.3,3357.5,0.1191]
[1642035044318,3.854,3358.7,3357.4,0.45]
[1642035044319,0.1191,3358.2,3357.4,0.45]
[1642035044511,3.854,3358.7,3357.6,0.12705793]
[1642035044512,0.74457,3358.7,3357.6,0.12705793]
[1642035044712,0.74457,3358.7,3357.6,0.00795793]
[1642035044913,0.74457,3358.7,3357.5,0.1191]
[1642035044914,0.74457,3358.7,3357.7,1.42674844]
[1642035045163,2.55308981,3358.1,3357.8,0.6701065]
[1642035045357,2.55308981,3358.1,3357.9,1.57483496]
[1642035045557,2.55308981,3358.1,3357.9,1.58108762]
[1642035045756,2.55308981,3358.1,3358.0,0.00568423]
[1642035045960,2.55308981,3358.1,3358.0,0.12478423]
[1642035046257,2.55308981,3358.3,3358.0,0.12478423]
[1642035046460,2.55308981,3358.3,3358.1,0.1191]
[1642035046664,2.55308981,3358.3,3358.1,0.12421581]
[1642035046863,2.55308981,3358.3,3358.2,0.00454739]
[1642035047260,2.55308981,3358.3,3358.1,0.00511581]
[1642035047463,0.00247144,3358.6,3358.5,1.30413163]
[1642035047964,0.00247144,3358.6,3358.5,1.30697375]
[1642035048462,0.74704144,3358.6,3358.5,1.30697375]
[1642035049100,0.00247144,3358.6,3358.5,1.30697375]
[1642035049605,2.55556125,3358.6,3358.5,1.30697375]
[1642035050700,0.00247144,3358.6,3358.5,1.30697375]
[1642035050899,0.00247144,3358.6,3358.5,1.25697375]
[1642035051905,0.00247144,3358.6,3358.3,1.35981548]
[1642035052110,0.00247144,3358.6,3358.4,1.11886734]
[1642035052752,11.91,3358.5,3358.4,1.11886734]
[1642035053751,14.46308981,3358.5,3358.4,1.11886734]
[1642035053954,14.88218981,3358.5,3358.3,1.35981548]
[1642035054152,11.27219098,3358.4,3358.3,1.35981548]
[1642035054352,11.39129098,3358.4,3358.3,1.35981548]
[1642035054552,11.39129098,3358.4,3358.3,1.36095232]
[1642035054951,9.26384,3358.4,3358.3,1.36095232]
[1642035055355,8.26384,3358.4,3358.3,1.36095232]
[1642035055953,14.64615314,3358.4,3358.3,1.36095232]
[1642035056153,14.64861461,3358.4,3358.3,1.36095232]
[1642035057608,15.64861461,3358.4,3358.3,1.36095232]
[1642035058109,16.11561461,3358.4,3358.3,1.36095232]
[1642035059509,15.64861461,3358.4,3358.3,1.36095232]
[1642035061249,16.15965747,3358.4,3358.3,1.36095232]
[1642035061454,19.65965747,3358.4,3358.3,1.2689248]
[1642035062151,12.25965747,3358.4,3358.3,1.2689248]
[1642035062656,11.25965747,3358.4,3358.3,1.2689248]
[1642035062855,6.89581747,3358.4,3358.3,1.2689248]
[1642035063253,3.06659414,3358.4,3358.3,1.2689248]
[1642035064206,9.02159414,3358.4,3358.3,1.2689248]
[1642035065411,9.32159414,3358.4,3358.3,1.2689248]
[1642035065808,9.32159414,3358.4,3358.3,1.2189248]
[1642035067109,9.02159414,3358.4,3358.3,1.2189248]
[1642035067310,9.32159414,3358.4,3358.3,1.2189248]
[1642035071056,9.31569414,3358.4,3358.3,1.2189248]
[1642035071908,0.00992145,3358.2,3358.0,1.12797108]
[1642035072109,6.89466,3358.3,3358.0,1.12797108]
[1642035072311,6.89466,3358.3,3358.1,0.00113685]
[1642035073510,7.01376,3358.3,3358.1,0.00113685]
[1642035073712,0.86376,3358.3,3358.1,0.00113685]
[1642035073913,0.1191,3358.3,3358.1,0.06068938]
[1642035074312,2.55308981,3358.2,3358.1,0.06068938]
[1642035074511,2.55308981,3358.2,3358.1,0.00113685]
[1642035075750,9.78601131,3358.4,3358.1,0.00113685]
[1642035075751,2.55308981,3358.3,3358.1,0.00113685]
[1642035076152,2.85308981,3358.3,3358.1,0.00113685]
[1642035077557,2.55308981,3358.3,3358.1,0.00113685]
[1642035077759,2.55308981,3358.2,3358.1,0.00113685]
[1642035078562,2.55308981,3358.3,3358.1,0.00113685]
[1642035079302,3.29775981,3358.3,3358.1,0.00113685]
[1642035080303,4.04243981,3358.3,3358.1,0.00113685]
[1642035080505,3.29775981,3358.3,3358.1,0.00113685]
[1642035080704,2.55308981,3358.2,3358.1,0.00113685]
[1642035081707,6.05308981,3358.2,3358.1,0.00113685]
[1642035081909,3.5,3358.2,3358.1,0.00113685]
[1642035082951,6.05308981,3358.2,3358.1,0.00113685]
[1642035083153,2.55308981,3358.2,3358.1,0.00113685]
[1642035084351,3.06406758,3358.2,3358.1,0.00113685]
[1642035084751,5.66406758,3358.2,3358.1,0.00113685]
[1642035085356,3.11097777,3358.2,3358.1,0.00113685]
[1642035086607,3.31155402,3358.2,3358.1,0.00113685]
[1642035087411,4.72427703,3358.2,3358.1,0.00113685]
[1642035087814,5.02427703,3358.2,3358.1,0.00113685]
[1642035088413,6.56464383,3358.2,3358.1,0.00113685]
[1642035088617,0.74483,3357.9,3357.5,0.00454739]
[1642035088813,0.74484,3357.7,3357.5,0.00454739]
[1642035089017,1.16394,3357.7,3357.5,0.00454739]
[1642035089215,4.95,3357.6,3357.4,0.07364739]
[1642035089519,4.95,3357.6,3357.0,22.19957771]
[1642035089520,4.526,3357.5,3357.0,22.19957771]
[1642035089718,1.48984,3357.3,3357.0,22.19957771]
[1642035089916,6.5001,3357.2,3357.1,0.00227369]
[1642035090162,7.75,3357.1,3357.0,22.19957771]
[1642035090360,16.531125,3357.1,3357.0,22.19957771]
[1642035090559,17.531125,3357.1,3357.0,21.19957771]
[1642035090760,17.531125,3357.1,3357.0,9.22649771]
[1642035090961,7.85,3357.0,3356.2,0.1191]
[1642035091162,7.85,3357.0,3356.4,0.3996]
[1642035091163,7.86263366,3356.5,3356.4,0.3996]
[1642035091363,15.30233366,3356.5,3356.4,0.3496]
[1642035091566,16.42143366,3356.5,3356.4,0.3496]
[1642035091761,0.6504,3356.4,3355.0,0.1191]
[1642035091962,5.955,3356.3,3355.1,0.6706476]
[1642035092161,0.74522,3356.1,3356.0,1.51571202]
[1642035092362,5.955,3356.1,3356.0,1.51571202]
[1642035092563,5.905,3356.1,3356.0,1.52196468]
[1642035094707,8.45808981,3356.1,3356.0,1.42196468]
[1642035096113,8.45808981,3356.1,3356.0,1.37196468]
[1642035096415,8.45808981,3356.1,3356.0,1.67196468]
[1642035096616,8.45808981,3356.1,3356.0,4.27196468]
[1642035096815,8.45808981,3356.1,3356.0,1.67196468]
[1642035097013,8.45808981,3356.1,3356.0,1.37196468]
[1642035097416,5.905,3356.1,3356.0,1.37196468]
[1642035097657,1.46449266,3357.1,3356.3,0.6704075]
[1642035097851,1.46449266,3357.1,3356.4,0.05033166]
[1642035098052,1.46449266,3357.1,3356.5,1.3406664]
[1642035098255,1.46449266,3357.1,3356.6,0.02938387]
[1642035098452,1.46449266,3357.1,3356.6,0.00284212]
[1642035098653,1.46449266,3357.1,3356.7,2.27070497]
[1642035098853,1.46449266,3357.1,3356.7,2.26843127]
[1642035099055,1.46449266,3357.1,3356.9,0.6703203]
[1642035099258,2.40314882,3357.3,3356.9,0.6703203]
[1642035099259,2.55499182,3357.0,3356.9,0.6703203]
[1642035099654,2.55499182,3357.0,3356.9,0.67145715]
[1642035100153,2.55499182,3357.2,3356.9,0.67145715]
[1642035100556,2.55499182,3357.2,3356.9,0.00113685]
[1642035100956,0.00217611,3357.0,3356.8,1.76493928]
[1642035101157,0.00217611,3357.0,3356.8,0.00170527]
[1642035101413,0.00217611,3357.0,3356.9,0.00113685]
[1642035101614,0.00217611,3357.0,3356.8,0.00170527]
[1642035101816,0.00217611,3357.0,3356.9,0.00113685]
[1642035102015,0.00217611,3357.0,3356.8,0.00170527]
[1642035102615,0.00217611,3357.0,3356.8,1.34222837]
[1642035103018,0.00217611,3357.0,3356.9,0.00113685]
[1642035105966,0.00217611,3357.0,3356.9,1.8136239]
[1642035106368,0.00217611,3357.0,3356.9,1.81106357]
[1642035107172,0.00217611,3357.0,3356.9,0.00113685]
[1642035107775,0.5132984,3357.0,3356.9,0.00113685]
[1642035108174,0.5132984,3357.0,3356.8,0.00170527]
[1642035109006,3.06829022,3357.0,3356.8,0.00170527]
[1642035109207,0.51112229,3356.9,3356.8,0.00170527]
[1642035110509,0.51112229,3356.9,3356.7,2.19742546]
[1642035110909,0.51329816,3356.9,3356.7,2.19742546]
[1642035111308,3.06828998,3356.9,3356.7,2.19742546]
[1642035111515,3.06828998,3356.9,3356.7,2.19230965]
[1642035112015,0.51112229,3356.8,3356.7,2.19230965]
[1642035112414,3.81112229,3356.8,3356.7,1.07308247]
[1642035112672,7.85620411,3356.8,3356.7,1.07308247]
[1642035113462,8.15620411,3356.8,3356.7,1.07308247]
[1642035113864,8.15620411,3356.8,3355.8,1.0103909]
[1642035113865,0.74524,3356.4,3355.8,1.0103909]
[1642035114068,0.5451,3356.3,3355.8,1.0103909]
[1642035114268,0.426,3356.2,3355.9,0.00511582]
[1642035114468,0.5451,3356.2,3355.9,0.00511582]
[1642035114668,1.80150229,3356.2,3355.9,0.00511582]
[1642035114871,1.80150229,3356.2,3356.0,1.26625836]
[1642035115068,4.69529,3356.1,3356.0,2.49097469]
[1642035115270,4.81439,3356.1,3356.0,2.49097469]
[1642035115969,4.81439,3356.1,3356.0,1.26625836]
[1642035116612,7.36938182,3356.1,3356.0,1.26625836]
[1642035117421,7.88073775,3356.1,3356.0,1.26625836]
[1642035119928,3.88073775,3356.1,3356.0,1.26625836]
[1642035120183,3.18544775,3356.1,3356.0,1.26625836]
[1642035120374,3.06634775,3356.1,3356.0,1.26625836]
[1642035121175,3.06634775,3356.1,3356.0,1.25862089]
[1642035122977,3.06634775,3356.1,3356.0,1.37772089]
[1642035123778,3.01634775,3356.1,3356.0,1.37772089]
[1642035127657,0.85220776,3356.7,3356.6,0.80030652]
[1642035127963,0.85220776,3356.7,3356.6,1.92466535]
[1642035128558,5.9581,3356.8,3356.6,1.92466535]
[1642035128962,5.9581,3356.8,3356.6,3.41946]
[1642035129161,5.9581,3356.8,3356.7,1.38751436]
[1642035129362,3.35,3356.7,3356.6,0.71823296]
[1642035129763,4.20220776,3356.7,3356.6,0.71823296]
[1642035130369,4.20220776,3356.7,3356.6,1.46379699]
[1642035130967,4.20438314,3356.7,3356.6,1.46379699]
[1642035131813,0.85438314,3356.7,3356.6,1.46379699]
[1642035132713,2.31008584,3356.7,3356.6,1.46379699]
[1642035133815,0.85438314,3356.7,3356.6,1.46379699]
[1642035134216,8.15597584,3356.8,3356.6,3.19188041]
[1642035134217,9.0081836,3356.8,3356.6,3.19188041]
[1642035134421,4.29517617,3357.1,3356.7,5.73510745]
[1642035134422,4.24517617,3357.1,3356.7,5.73510745]
[1642035134617,4.24517617,3357.1,3356.7,4.00668208]
[1642035134818,0.00113684,3357.0,3356.7,3.9691]
[1642035135260,1.45910963,3356.8,3356.7,3.9691]
[1642035135461,1.45910963,3356.8,3356.7,5.3095683]
[1642035136667,1.45910963,3356.8,3356.7,1.4595683]
[1642035137067,1.45910963,3356.8,3356.7,5.0095683]
[1642035137266,1.46024647,3357.0,3356.8,0.14894]
[1642035137668,1.46024647,3357.0,3356.8,1.42821073]
[1642035138270,0.00113684,3357.0,3356.8,1.42821073]
[1642035138470,0.00113684,3357.0,3356.9,6.33799477]
[1642035138671,0.00113684,3357.0,3356.9,6.43833144]
[1642035138925,0.00113684,3357.0,3356.9,6.47470036]
[1642035139117,0.00113684,3357.0,3356.9,9.17470036]
[1642035139516,0.00113684,3357.0,3356.9,6.47470036]
[1642035139716,0.00113684,3357.0,3356.9,1.82470036]
[1642035140517,0.00113684,3357.0,3356.9,1.78833144]
[1642035140717,0.00113684,3357.0,3356.9,1.48833144]
[1642035140920,0.00113684,3357.0,3356.9,2.18833144]
[1642035141119,0.00113684,3357.0,3356.9,2.19393603]
[1642035142960,0.00113684,3357.0,3356.9,2.22678389]
[1642035144366,0.00113684,3357.0,3356.9,2.19393603]
[1642035145167,0.00113684,3357.0,3356.9,2.07483603]
[1642035145368,0.00113684,3357.0,3356.9,0.70560459]
[1642035145967,0.00113684,3357.0,3356.9,0.7]
[1642035146420,0.00113684,3357.0,3356.6,1.91070419]
[1642035146818,0.00113684,3357.0,3356.7,1.69028797]
[1642035147016,0.00113684,3357.0,3356.6,1.91070419]
[1642035147417,0.00113684,3357.0,3356.6,3.63945671]
[1642035147620,0.00113684,3357.0,3356.6,1.91070419]
[1642035147820,0.00113684,3357.0,3356.6,3.62863835]
[1642035148219,0.51114732,3356.9,3356.6,3.62863835]
[1642035148421,0.51114732,3356.9,3356.6,3.64841384]
[1642035149022,2.55528667,3356.8,3356.6,3.64841384]
[1642035149323,2.55528667,3356.8,3356.6,3.65109999]
[1642035149521,2.55528667,3356.8,3356.7,1.70209453]
[1642035150898,0.00113684,3357.0,3356.7,5.29183463]
[1642035151098,0.00113684,3357.0,3356.7,5.59183463]
[1642035151501,0.00113684,3357.0,3356.9,3.72755812]
[1642035151704,0.00113684,3357.0,3356.9,5.63479867]
[1642035152000,0.00113684,3357.0,3356.9,5.67135735]
[1642035152198,0.00113684,3357.0,3356.9,3.17135735]
[1642035153501,0.00113684,3357.0,3356.9,1.94379923]
[1642035153701,0.00113684,3357.0,3356.9,1.82469923]
[1642035154710,0.00113684,3357.0,3356.9,3.16187802]
[1642035155717,0.00113684,3357.0,3356.9,3.12531934]
[1642035156016,0.00113684,3357.0,3356.9,3.15610122]
[1642035157017,0.00113684,3357.0,3356.9,3.45610122]
[1642035157670,0.00113684,3357.0,3356.9,3.57520122]
[1642035157870,0.00113684,3357.0,3356.9,2.23802243]
[1642035158371,0.00113684,3357.0,3356.9,2.14733763]
[1642035158973,0.00113684,3357.0,3356.9,2.11655575]
[1642035159176,0.00113684,3357.0,3356.9,0.4191]
[1642035159675,0.00113684,3357.0,3356.9,2.10724361]
[1642035159872,0.00113684,3357.0,3356.9,2.11156861]
[1642035160072,0.00113684,3357.0,3356.9,2.12075745]
[1642035160273,0.00113684,3357.0,3356.9,2.10847903]
[1642035160473,0.00113684,3357.0,3356.9,1.98937903]
[1642035160676,1.45910963,3357.4,3357.2,1.44363656]